fUSD/lending_fUSD_20240805
["ID","MTS","AMOUNT","RATE_DAILY","PERIOD"]
[334187600,1722819043966,-930.82649444,0.00011105,2]
[334187602,1722819043976,-165.33430261,0.00011105,2]
[334187604,1722819043985,-243.00643023,0.00011105,2]
[334187606,1722819043995,-365.36537875,0.00011105,2]
[334187608,1722819044005,-155.0,0.00011105,2]
[334187610,1722819044015,-4734.51941058,0.00011105,2]
[334187611,1722819044025,-357.10853561,0.00011105,2]
[334187613,1722819044035,-264.29868304,0.00011105,2]
[334187615,1722819044044,-348.15261591,0.00011105,2]
[334187617,1722819044055,-1274.36385477,0.00011105,2]
[334187619,1722819044065,-298.34472477,0.00011105,2]
[334187621,1722819044075,-1224.54032076,0.00011105,2]
[334187623,1722819044084,-155.0,0.00011105,2]
[334187625,1722819044094,-155.15173376,0.00011105,2]
[334187627,1722819044106,-155.0,0.00011105,2]
[334187629,1722819044115,-440.01962612,0.00011105,2]
[334187631,1722819044125,-484.69898026,0.00011105,2]
[334187632,1722819044135,-476.4573429,0.00011105,2]
[334187633,1722819044144,-155.29218886,0.00011105,2]
[334187634,1722819044158,-155.09770321,0.00011105,2]
[334187635,1722819044168,-155.07285233,0.00011105,2]
[334187636,1722819044178,-205.72998009,0.00011105,2]
[334187637,1722819044188,-297.19942446,0.00011105,2]
[334187638,1722819044198,-263.66394453,0.00011105,2]
[334187646,1722819044491,-188.60979296,0.00011105,2]
[334187647,1722819044504,-248.37986422,0.00011105,2]
[334187649,1722819044514,-1175.68290634,0.00011105,2]
[334187651,1722819044525,-155.20423069,0.00011105,2]
[334187653,1722819044535,-359.03203292,0.00011105,2]
[334187655,1722819044545,-196.93669502,0.00011105,2]
[334187657,1722819044555,-379.95855132,0.00011105,2]
[334187659,1722819044565,-531.75837037,0.00011105,2]
[334187661,1722819044575,-202.68830391,0.00011105,2]
[334187663,1722819044586,-155.1902858,0.00011105,2]
[334187665,1722819044596,-155.0,0.00011105,2]
[334187667,1722819044606,-155.120938,0.00011105,2]
[334187669,1722819044616,-155.0,0.00011105,2]
[334187671,1722819044625,-164.21268611,0.00011105,2]
[334187673,1722819044635,-155.0,0.00011105,2]
[334187675,1722819044645,-363.80421493,0.00011105,2]
[334187677,1722819044663,-218.70120193,0.00011105,2]
[334187679,1722819044676,-155.11563258,0.00011105,2]
[334187681,1722819044687,-347.66898349,0.00011105,2]
[334187683,1722819044697,-274.68671814,0.00011105,2]
[334187685,1722819044707,-535.28924073,0.00011105,2]
[334187687,1722819044717,-519.74577912,0.00011105,2]
[334187689,1722819044728,-3400.91875942,0.00011105,2]
[334187691,1722819044738,-526.23743645,0.00011105,2]
[334187693,1722819044748,-155.0,0.00011105,2]
[334187695,1722819044758,-530.67276147,0.00011105,2]
[334187697,1722819044767,-155.0,0.00011105,2]
[334187699,1722819044777,-155.15821698,0.00011105,2]
[334187701,1722819044787,-367.51291896,0.00011105,2]
[334187703,1722819044797,-493.15120457,0.00011105,2]
[334187705,1722819044807,-155.20380919,0.00011105,2]
[334187707,1722819044817,-248.50912127,0.00011105,2]
[334187709,1722819044826,-240.82333061,0.00011105,2]
[334187711,1722819044838,-200.0,0.0001111,2]
[334187713,1722819044848,-276.63977299,0.00011161,2]
[334187715,1722819044859,-50802.05318083,0.00011186,2]
[334187716,1722819044869,-22637.45575811,0.00011186,2]
[334187718,1722819044879,-400.0,0.00011186,2]
[334187721,1722819044889,-200.0,0.00011221,2]
[334187722,1722819044906,-880.0,0.00011292,2]
[334187724,1722819044916,-420.0,0.0001135,2]
[334187726,1722819044926,-420.0,0.00011353,2]
[334187728,1722819044937,-150.0,0.00011384,2]
[334187730,1722819044947,-169.1,0.00011403,2]
[334187732,1722819044957,-1119.49791,0.0001144,2]
[334187734,1722819044967,-349.5105355,0.00011494,2]
[334187736,1722819044978,-4466.48701934,0.00011543,2]
[334187738,1722819044988,-671.65915653,0.00011543,2]
[334187740,1722819044998,-947.92262883,0.00011543,2]
[334187742,1722819045008,-433.0,0.00011801,2]
[334187744,1722819045018,-15408.87255255,0.00012,2]
[334187746,1722819045029,-243.78,0.00012033,2]
[334187748,1722819045038,-1119.49792,0.0001206,2]
[334187751,1722819045049,-269.16,0.00012204,2]
[334187753,1722819045060,-5000.0,0.0001236,2]
[334187755,1722819045071,-2500.85158559,0.0001236,2]
[334187757,1722819045081,-190.47506023,0.0001236,2]
[334187759,1722819045091,-587.0,0.00012481,2]
[334187761,1722819045101,-587.0,0.00012489,2]
[334187763,1722819045111,-880.0,0.00012546,2]
[334187765,1722819045122,-163.55,0.00012546,2]
[334187767,1722819045131,-1119.49791,0.0001268,2]
[334187768,1722819045141,-763.85,0.00012709,2]
[334187769,1722819045152,-686.34001009,0.00012808,2]
[334187770,1722819045162,-600.0,0.00013,2]
[334187771,1722819045171,-150.0,0.0001301,2]
[334187772,1722819045181,-169.1,0.00013033,2]
[334187773,1722819045190,-1038.67104206,0.00013066,2]
[334187774,1722819045200,-1296.95622263,0.00013303,2]
[334187775,1722819045209,-1119.49791,0.0001331,2]
[334187776,1722819045219,-412.76630026,0.00013333,2]
[334187777,1722819045229,-449.14284782,0.00013333,2]
[334187778,1722819045239,-170.34699346,0.00013333,2]
[334187779,1722819045248,-1049.72746869,0.00013333,2]
[334187780,1722819045258,-181.66385154,0.00013333,2]
[334187781,1722819045268,-155.0,0.000134,2]
[334187782,1722819045279,-269.16,0.00013424,2]
[334187783,1722819045289,-2751.0,0.00013699,2]
[334187784,1722819045299,-3587.52,0.00013699,2]
[334187786,1722819045308,-158.39,0.00013699,2]
[334187788,1722819045318,-200.0,0.00013699,2]
[334187790,1722819045328,-267.11800026,0.00013701,2]
[334187792,1722819045338,-165.17094933,0.00013701,2]
[334187794,1722819045347,-823.0,0.00013724,2]
[334187796,1722819045358,-823.0,0.00013737,2]
[334187798,1722819045368,-199.77964,0.00013773,2]
[334187800,1722819045378,-15855.70663096,0.000138,3]
[334187803,1722819045396,-815.648622,0.000138,3]
[334187805,1722819045412,-1150.70064965,0.000138,3]
[334187807,1722819045424,-569.23368,0.000138,3]
[334187810,1722819045440,-37568.18187001,0.000138,3]
[334187812,1722819045452,-5706.87253159,0.000138,3]
[334187816,1722819045469,-836.498651,0.000138,3]
[334187818,1722819045481,-11096.02133797,0.000138,3]
[334187820,1722819045493,-2126.874996,0.000138,3]
[334187822,1722819045505,-7707.22865925,0.000138,3]
[334187825,1722819045517,-8821.75096878,0.000138,3]
[334187828,1722819045541,-712.65952611,0.000138,3]
[334187831,1722819045553,-1732.88242047,0.000138,3]
[334187833,1722819045565,-3072.09394039,0.000138,3]
[334187835,1722819045576,-449.8216645,0.000138,3]
[334187838,1722819045592,-706.04,0.000138,3]
[334187840,1722819045604,-316.974,0.000138,3]
[334187842,1722819045616,-263.8,0.000138,3]
[334187845,1722819045631,-11051.1857742,0.000138,3]
[334187847,1722819045642,-3870.18624551,0.000138,3]
[334187849,1722819045659,-330.38964877,0.000138,3]
[334187852,1722819045674,-412.0,0.000138,3]
[334187855,1722819045686,-1965.40297485,0.000138,3]
[334187861,1722819045729,-285.7855,0.00010887,2]
[334187864,1722819045741,-74.8345,0.00010887,2]
[334187866,1722819045751,-363.4655,0.000138,3]
[334187868,1722819045762,-3409.13652469,0.000138,3]
[334187870,1722819045774,-254.5657829,0.000138,3]
[334187872,1722819045786,-1701.63685333,0.000138,3]
[334187874,1722819045798,-1024.07541251,0.000138,3]
[334187876,1722819045809,-466.05087961,0.000138,3]
[334187879,1722819045821,-764.94278001,0.000138,3]
[334187881,1722819045833,-83591.70505394,0.000138,3]
[334187883,1722819045843,-880.0,0.00013801,2]
[334187885,1722819045853,-28264.01884903,0.0001389,3]
[334187887,1722819045870,-28500.0,0.0001389,3]
[334187889,1722819045881,-397.63098387,0.0001389,3]
[334187892,1722819045909,-2844.2055,0.0001389,3]
[334187898,1722819045955,-32755.8040353,0.0001389,3]
[334187900,1722819045966,-700.0,0.000139,5]
[334187902,1722819045975,-37881.27921257,0.000139,3]
[334187904,1722819045987,-2000.00004,0.000139,3]
[334187906,1722819045999,-84567.13992091,0.000139,3]
[334187909,1722819046011,-1155.154,0.000139,3]
[334187930,1722819046213,-360.62,0.00010887,2]
[334187932,1722819046224,-784.38,0.000139,3]
[334187936,1722819046255,-924.976272,0.000139,3]
[334187942,1722819046304,-59205.95757452,0.000139,3]
[334187944,1722819046314,-1119.49792,0.0001393,2]
[334187946,1722819046324,-167.77,0.00013973,2]
[334187948,1722819046335,-166.87,0.00013973,2]
[334187950,1722819046345,-189.68,0.00013973,2]
[334187952,1722819046355,-150.43,0.00013973,2]
[334187954,1722819046364,-9325.94435102,0.0001398,3]
[334187956,1722819046374,-188.19553496,0.00013989,2]
[334187958,1722819046383,-500.0,0.00013989,2]
[334187960,1722819046393,-407.06597349,0.00013989,2]
[334187962,1722819046406,-11595.207421,0.0001399,3]
[334187964,1722819046416,-9325.94435102,0.0001399,3]
[334187966,1722819046426,-18611.86487968,0.00014,2]
[334187968,1722819046435,-356.427104,0.00014247,2]
[334187970,1722819046445,-163.55,0.00014341,2]
[334187972,1722819046455,-300.0,0.000144,2]
[334187974,1722819046465,-150.0,0.00014636,2]
[334187976,1722819046475,-269.16,0.00014645,2]
[334187978,1722819046485,-169.1,0.00014662,2]
[334187980,1722819046494,-763.85,0.00014953,2]
[334187982,1722819046505,-9325.94435102,0.0001497,3]
[334187984,1722819046515,-11595.207421,0.0001498,3]
[334187986,1722819046524,-2215.0,0.0001499,2]
[334187988,1722819046534,-2649.0,0.00015,2]
[334187990,1722819046543,-494.0,0.00015,2]
[334187992,1722819046554,-810.0,0.00015,2]
[334187994,1722819046564,-650.0,0.00015,2]
[334187996,1722819046574,-623.87590211,0.00015,2]
[334187998,1722819046584,-880.0,0.00015056,2]
[334188000,1722819046594,-163.55,0.00015056,2]
[334188001,1722819046604,-158.39,0.00015068,2]
[334188003,1722819046613,-356.427104,0.00015068,2]
[334188004,1722819046623,-1152.0,0.00015092,2]
[334188006,1722819046633,-1152.0,0.00015111,2]
[334188008,1722819046643,-200.0,0.00015371,2]
[334188010,1722819046656,-200.0,0.00015417,2]
[334188012,1722819046666,-267.11800025,0.00015568,2]
[334188014,1722819046677,-177.73863604,0.00015731,2]
[334188016,1722819046687,-9325.94435102,0.00015805,3]
[334188018,1722819046698,-10000.0,0.00015815,2]
[334188020,1722819046707,-167.0,0.00015831,2]
[334188022,1722819046717,-167.0,0.00015831,2]
[334188024,1722819046727,-169.35,0.00015831,2]
[334188026,1722819046738,-356.427104,0.0001589,2]
[334188028,1722819046750,-300.89151542,0.00015899,2]
[334188030,1722819046760,-155.0,0.00016,2]
[334188032,1722819046770,-158.39,0.00016438,2]
[334188034,1722819046781,-1762.83385166,0.000165,2]
[334188036,1722819046791,-1613.0,0.00016595,2]
[334188038,1722819046802,-356.427104,0.00016712,2]
[334188040,1722819046811,-200.0,0.00016787,2]
[334188042,1722819046821,-700.0,0.00017,2]
[334188044,1722819046832,-27977.8330531,0.00017057,3]
[334188046,1722819046845,-1266.0,0.00017067,2]
[334188048,1722819046855,-621.0,0.00017067,2]
[334188050,1722819046867,-1219.489,0.00017067,2]
[334188052,1722819046877,-904.144,0.00017067,2]
[334188053,1722819046888,-802.0,0.00017067,2]
[334188055,1722819046898,-359.167,0.00017067,2]
[334188057,1722819046909,-446.0,0.00017067,2]
[334188059,1722819046919,-278.0,0.00017067,2]
[334188061,1722819046929,-550.0,0.00017067,2]
[334188063,1722819046940,-1892.0,0.00017067,2]
[334188065,1722819046949,-1370.0,0.00017067,2]
[334188067,1722819046958,-3288.0,0.00017067,2]
[334188069,1722819046968,-150.0,0.00017067,2]
[334188071,1722819046979,-289.0,0.00017067,2]
[334188073,1722819046989,-5836.0,0.00017067,2]
[334188075,1722819046998,-21734.0,0.00017067,2]
[334188077,1722819047008,-1203.0,0.00017067,2]
[334188078,1722819047018,-5128.0,0.00017067,2]
[334188080,1722819047027,-1748.653,0.00017067,2]
[334188082,1722819047037,-158.282,0.00017067,2]
[334188084,1722819047047,-763.85,0.00017198,2]
[334188086,1722819047057,-356.427104,0.00017534,2]
[334188088,1722819047067,-535.57210001,0.00018,2]
[334188090,1722819047077,-18651.888702,0.0001809,3]
[334188092,1722819047087,-497.0,0.00018249,2]
[334188094,1722819047096,-420.52,0.00018849,2]
[334188096,1722819047106,-834.36,0.00018849,2]
[334188098,1722819047115,-1500.0,0.000189,6]
[334188100,1722819047125,-750.0,0.00019,2]
[334188102,1722819047135,-150.0,0.0001926,2]
[334188104,1722819047144,-150.0,0.0001926,2]
[334188105,1722819047154,-763.85,0.00019443,2]
[334188107,1722819047164,-1500.0,0.000197,2]
[334188109,1722819047174,-500.0,0.0001989,2]
[334188111,1722819047183,-500.0,0.0001989,2]
[334188113,1722819047193,-500.0,0.0001989,2]
[334188115,1722819047203,-500.0,0.0001989,2]
[334188117,1722819047213,-500.0,0.0001989,2]
[334188119,1722819047223,-500.0,0.0001989,2]
[334188121,1722819047232,-500.0,0.0001989,2]
[334188123,1722819047242,-500.0,0.0001989,2]
[334188125,1722819047252,-500.0,0.0001989,2]
[334188126,1722819047263,-500.0,0.0001989,2]
[334188128,1722819047274,-500.0,0.0001989,2]
[334188130,1722819047285,-500.0,0.0001989,2]
[334188132,1722819047295,-2257.6792233,0.0002,2]
[334188134,1722819047305,-1000.0,0.0002,2]
[334188136,1722819047316,-604.0,0.00020067,2]
[334188138,1722819047326,-431.0,0.00020067,2]
[334188140,1722819047336,-550.0,0.00020067,2]
[334188142,1722819047347,-1370.0,0.00020067,2]
[334188144,1722819047357,-2700.206,0.00020067,2]
[334188146,1722819047367,-161.0,0.00020067,2]
[334188148,1722819047378,-5832.0,0.00020067,2]
[334188151,1722819047388,-21734.0,0.00020067,2]
[334188153,1722819047398,-1203.0,0.00020067,2]
[334188154,1722819047411,-5124.0,0.00020067,2]
[334188157,1722819047423,-1671.0,0.00020067,2]
[334188159,1722819047433,-236.4723607,0.00020191,2]
[334188160,1722819047444,-200.12719945,0.00020267,2]
[334188162,1722819047454,-189.68,0.00020447,2]
[334188163,1722819047464,-150.0,0.00020663,2]
[334188164,1722819047474,-1000.0,0.0002077,2]
[334188165,1722819047484,-500.0,0.0002077,2]
[334188166,1722819047494,-176377.68229718,0.00021,4]
[334188167,1722819047504,-225.57076581,0.00021,2]
[334188168,1722819047513,-800.0,0.00021,2]
[334188169,1722819047523,-151.0,0.00021,2]
[334188170,1722819047533,-151.0,0.00021,2]
[334188171,1722819047544,-763.85,0.00021688,2]
[334188172,1722819047553,-14906.08,0.00021757,2]
[334188173,1722819047563,-19155.22,0.00021757,2]
[334188174,1722819047573,-50674.0,0.000218,2]
[334188175,1722819047585,-24458.4610422,0.0002187,4]
[334188176,1722819047595,-2200.0,0.000219,7]
[334188177,1722819047606,-842.55564882,0.000219,2]
[334188179,1722819047615,-221.11139028,0.000219,4]
[334188181,1722819047625,-5378.06471096,0.000219,2]
[334188183,1722819047634,-176.76776976,0.000219,2]
[334188185,1722819047644,-179.29,0.00021918,2]
[334188187,1722819047658,-151.0,0.00021918,2]
[334188189,1722819047668,-150.41,0.00021918,2]
[334188191,1722819047678,-155.23,0.0002199,2]
[334188193,1722819047689,-387189.55253986,0.00021999,11]
[334188195,1722819047698,-795.51608512,0.00022,2]
[334188197,1722819047708,-1000.0,0.00022,15]
[334188199,1722819047718,-295434.46077056,0.00022,2]
[334188201,1722819047728,-151.0,0.00022,7]
[334188203,1722819047737,-151.0,0.00022,7]
[334188205,1722819047747,-164.399675,0.00022,7]
[334188207,1722819047756,-164.399675,0.00022,7]
[334188209,1722819047766,-151.0,0.00022,7]
[334188211,1722819047776,-182.694642,0.00022,7]
[334188213,1722819047786,-182.694642,0.00022,7]
[334188215,1722819047796,-151.0,0.00022,7]
[334188217,1722819047807,-161.65,0.00022,7]
[334188219,1722819047816,-271.115852,0.00022,7]
[334188221,1722819047826,-161.65,0.00022,7]
[334188223,1722819047836,-151.0,0.00022,7]
[334188225,1722819047850,-151.0,0.00022,7]
[334188227,1722819047860,-151.0,0.00022,7]
[334188229,1722819047870,-151.0,0.00022,7]
[334188231,1722819047881,-151.0,0.00022,7]
[334188233,1722819047891,-151.0,0.00022,7]
[334188235,1722819047902,-217.598246,0.00022,7]
[334188237,1722819047914,-2277.77,0.00022,7]
[334188239,1722819047927,-151.0,0.00022,7]
[334188241,1722819047938,-151.0,0.00022,7]
[334188243,1722819047950,-1434.520106,0.00022,7]
[334188245,1722819047960,-151.0,0.00022,7]
[334188247,1722819047971,-1434.520106,0.00022,7]
[334188249,1722819047981,-1000.0,0.000223,15]
[334188251,1722819047992,-183.78861233,0.00022462,2]
[334188254,1722819048002,-11495.0,0.000225,3]
[334188256,1722819048012,-151.0,0.00022562,7]
[334188258,1722819048022,-151.0,0.00022562,7]
[334188260,1722819048032,-151.0,0.00022562,7]
[334188262,1722819048041,-151.0,0.00022562,7]
[334188264,1722819048051,-151.0,0.00022562,7]
[334188266,1722819048061,-151.0,0.00022562,7]
[334188268,1722819048071,-151.0,0.00022562,2]
[334188270,1722819048081,-269.572612,0.00022562,7]
[334188272,1722819048091,-151.0,0.00022562,7]
[334188274,1722819048101,-151.0,0.00022562,7]
[334188276,1722819048110,-151.0,0.00022562,7]
[334188278,1722819048120,-151.0,0.00022562,7]
[334188280,1722819048130,-300.630918,0.00022562,7]
[334188282,1722819048139,-300.630918,0.00022562,7]
[334188284,1722819048152,-182.694642,0.00022575,7]
[334188286,1722819048166,-182.694642,0.00022575,7]
[334188288,1722819048176,-166.510596,0.00022575,7]
[334188290,1722819048185,-234.073942,0.00022575,7]
[334188292,1722819048195,-151.0,0.00022575,7]
[334188294,1722819048204,-161.65,0.00022575,7]
[334188296,1722819048214,-161.65,0.00022575,7]
[334188298,1722819048223,-71209.0,0.00022575,2]
[334188300,1722819048232,-199.40686329,0.000228,2]
[334188302,1722819048242,-10000.0,0.00022967,2]
[334188304,1722819048252,-43070.84033233,0.00023,5]
[334188306,1722819048262,-2256.56883189,0.00023,2]
[334188308,1722819048271,-500.0,0.00023,2]
[334188310,1722819048281,-850.0,0.00023,2]
[334188312,1722819048291,-487.617621,0.00023,2]
[334188314,1722819048300,-76430.84539357,0.00023,3]
[334188315,1722819048309,-1434.520106,0.00023,7]
[334188316,1722819048320,-151.0,0.00023,7]
[334188317,1722819048329,-500.0,0.00023013,9]
[334188318,1722819048339,-1000.0,0.00023045,2]
[334188319,1722819048348,-21728.0,0.00023067,2]
[334188320,1722819048358,-1671.0,0.00023067,2]
[334188321,1722819048367,-6923.97634871,0.000231,9]
[334188322,1722819048377,-418.6,0.000231,9]
[334188323,1722819048386,-500.0,0.00023178,9]
[334188324,1722819048395,-11495.0,0.000232,5]
[334188325,1722819048410,-180.0,0.00023205,2]
[334188326,1722819048420,-500.0,0.0002326,9]
[334188327,1722819048430,-500.0,0.00023342,9]
[334188328,1722819048439,-151.0,0.00023367,7]
[334188329,1722819048449,-164.399675,0.00023367,7]
[334188330,1722819048459,-164.399675,0.00023367,7]
[334188331,1722819048468,-151.0,0.00023368,7]
[334188332,1722819048478,-842.5556488,0.000234,2]
[334188333,1722819048488,-5378.06471095,0.000234,2]
[334188334,1722819048497,-2277.77,0.000234,7]
[334188335,1722819048506,-500.0,0.00023424,9]
[334188336,1722819048515,-988.0,0.000235,6]
[334188337,1722819048524,-1000.0,0.00023505,2]
[334188338,1722819048534,-500.0,0.00023506,9]
[334188339,1722819048778,-500.0,0.00023589,9]
[334188340,1722819048788,-500.0,0.00023589,9]
[334188341,1722819048797,-526.38,0.00023671,9]
[334188342,1722819048807,-500.0,0.00023671,9]
[334188343,1722819048817,-500.0,0.00023689,7]
[334188344,1722819048826,-3000.0,0.000237,8]
[334188345,1722819048836,-157.080509,0.00023748,3]
[334188346,1722819048846,-157.080509,0.00023748,3]
[334188347,1722819048856,-157.080509,0.00023748,2]
[334188348,1722819048867,-157.080509,0.00023748,2]
[334188349,1722819048877,-500.0,0.00023753,9]
[334188350,1722819048887,-942.63,0.00023777,2]
[334188351,1722819048896,-3700.0,0.000238,8]
[334188352,1722819048909,-500.0,0.00023835,9]
[334188353,1722819048919,-700.0,0.000239,8]
[334188354,1722819048928,-500.0,0.00023917,9]
[334188355,1722819048938,-763.85,0.00023933,2]
[334188356,1722819048949,-500.0,0.00023962,7]
[334188357,1722819048959,-2000.0,0.00024,9]
[334188358,1722819048969,-155.8228462,0.00024,15]
[334188359,1722819048979,-10720.7833118,0.00024,4]
[334188360,1722819048988,-500.0,0.00024,9]
[334188361,1722819048998,-988.0,0.00024,7]
[334188362,1722819049007,-2018.3697932,0.00024,4]
[334188363,1722819049016,-150.0,0.00024,9]
[334188364,1722819049026,-500.0,0.00024046,2]
[334188365,1722819049035,-157.080509,0.00024048,3]
[334188366,1722819049045,-157.080509,0.00024048,3]
[334188367,1722819049054,-157.080509,0.00024048,2]
[334188368,1722819049064,-157.080509,0.00024048,2]
[334188369,1722819049073,-157.080509,0.00024048,2]
[334188370,1722819049083,-500.0,0.00024055,2]
[334188371,1722819049092,-1000.0,0.00024064,2]
[334188372,1722819049102,-2337.51,0.00024082,2]
[334188373,1722819049112,-500.0,0.00024082,9]
[334188374,1722819049121,-2000.0,0.0002411,5]
[334188375,1722819049131,-157.080509,0.00024148,2]
[334188376,1722819049140,-157.080509,0.00024148,2]
[334188377,1722819049150,-157.080509,0.00024148,2]
[334188378,1722819049162,-157.080509,0.00024148,3]
[334188379,1722819049172,-157.080509,0.00024148,3]
[334188380,1722819049183,-157.080509,0.00024148,3]
[334188381,1722819049192,-2337.51,0.00024164,2]
[334188382,1722819049202,-500.0,0.00024164,9]
[334188383,1722819049211,-18163.24963105,0.00024229,2]
[334188384,1722819049222,-500.0,0.00024235,7]
[334188385,1722819049232,-2337.51,0.00024246,2]
[334188386,1722819049241,-458.58096187,0.00024246,9]
[334188387,1722819049251,-291831.41,0.000243,5]
[334188388,1722819049261,-10000.0,0.000243,2]
[334188389,1722819049270,-151.0,0.000243,7]
[334188390,1722819049280,-182.694642,0.000243,7]
[334188391,1722819049290,-182.694642,0.000243,7]
[334188392,1722819049299,-1002.44,0.000243,2]
[334188393,1722819049309,-302.54,0.000243,2]
[334188394,1722819049319,-151.0,0.000243,7]
[334188395,1722819049328,-161.65,0.000243,7]
[334188396,1722819049338,-161.65,0.000243,7]
[334188397,1722819049347,-151.0,0.000243,7]
[334188398,1722819049356,-151.0,0.000243,7]
[334188399,1722819049366,-151.0,0.000243,7]
[334188400,1722819049376,-151.0,0.000243,7]
[334188401,1722819049386,-151.0,0.000243,7]
[334188402,1722819049395,-197.024838,0.000243,7]
[334188403,1722819049410,-151.0,0.000243,7]
[334188404,1722819049420,-151.0,0.000243,7]
[334188405,1722819049430,-300.630918,0.000243,7]
[334188406,1722819049439,-300.630918,0.000243,7]
[334188407,1722819049450,-2277.77,0.000243,7]
[334188408,1722819049460,-707.42383012,0.000243,7]
[334188409,1722819049506,-490.672139,0.000243,7]
[334188410,1722819049518,-236.42413688,0.000243,7]
[334188411,1722819049534,-151.0,0.000243,7]
[334188412,1722819049544,-263.35080112,0.00024328,2]
[334188413,1722819049556,-2074.15919888,0.00024328,2]
[334188414,1722819049565,-400.0,0.0002437,2]
[334188415,1722819049575,-400.0,0.0002437,2]
[334188416,1722819049584,-500.0,0.00024378,2]
[334188417,1722819049594,-2000.0,0.000244,2]
[334188418,1722819049603,-2000.0,0.000244,2]
[334188419,1722819049613,-4037.24080112,0.00024405,2]
[334188420,1722819049632,-781.80247957,0.00023,7]
[334188421,1722819049655,-652.71762643,0.00023,7]
[334188422,1722819049666,-1086.97848162,0.00024405,2]
[334188423,1722819049676,-5255.82171318,0.00024405,2]
[334188424,1722819049686,-163.85736264,0.00024406,2]
[334188425,1722819049696,-481.71331352,0.00024406,2]
[334188426,1722819049705,-163.85736264,0.00024408,2]
[334188427,1722819049714,-2337.51,0.0002441,2]
[334188428,1722819049724,-11721.55305584,0.0002441,2]
[334188429,1722819049733,-5255.82171318,0.00024414,2]
[334188430,1722819049743,-1037.11514276,0.00024415,2]
[334188431,1722819049753,-163.85736264,0.00024415,2]
[334188432,1722819049764,-5124.21928274,0.00024416,2]
[334188433,1722819049774,-5255.82171318,0.00024417,2]
[334188434,1722819049785,-5124.21928274,0.00024417,2]
[334188435,1722819049795,-481.71331352,0.00024417,2]
[334188436,1722819049806,-164.399675,0.00024417,7]
[334188437,1722819049816,-164.399675,0.00024417,7]
[334188438,1722819049827,-1500.0,0.00024418,2]
[334188439,1722819049837,-2838.19177705,0.00024419,2]
[334188440,1722819050671,-542.00088822,0.00024419,2]
[334188441,1722819050683,-455.37695136,0.00024419,2]
[334188442,1722819050695,-1288.64966611,0.00024419,2]
[334188443,1722819050704,-182.694642,0.00024419,7]
[334188444,1722819050714,-182.694642,0.00024419,7]
[334188445,1722819050723,-151.0,0.00024419,7]
[334188446,1722819050733,-161.65,0.00024419,7]
[334188447,1722819050744,-161.65,0.00024419,7]
[334188448,1722819050753,-151.0,0.00024419,7]
[334188449,1722819050762,-151.0,0.00024419,7]
[334188450,1722819050772,-237.59286,0.00024419,7]
[334188451,1722819050781,-151.0,0.00024419,7]
[334188452,1722819050791,-33.91818989,0.00024419,7]
[334188453,1722819050802,-117.08181011,0.00024419,7]
[334188454,1722819050811,-151.0,0.00024419,7]
[334188455,1722819050820,-151.0,0.00024419,7]
[334188456,1722819050830,-300.630918,0.00024419,7]
[334188457,1722819050840,-300.630918,0.00024419,7]
[334188458,1722819050849,-1434.520106,0.00024419,7]
[334188459,1722819050863,-151.0,0.00024419,7]
[334188460,1722819050872,-83068.13624789,0.0002442,2]